fUSD/lending_fUSD_20240708
["ID","MTS","AMOUNT","RATE_DAILY","PERIOD"]
[331485555,1720438219983,-1373.64,0.0005178,120]
[331485556,1720438220031,-539.13,0.0005178,120]
[331485557,1720438220079,-628.14,0.0005178,120]
[331485558,1720438220124,-500.0,0.0005178,120]
[331485559,1720438220170,-500.0,0.0005178,120]
[331485560,1720438220219,-618.5,0.0005178,120]
[331485561,1720438220268,-2378.31,0.0005178,120]
[331485562,1720438220321,-604.87,0.0005178,120]
[331485563,1720438220366,-500.0,0.0005178,120]
[331485564,1720438220410,-500.0,0.0005178,120]
[331485565,1720438220458,-500.0,0.0005178,120]
[331485566,1720438220507,-500.0,0.0005178,120]
[331485567,1720438220556,-500.0,0.0005178,120]
[331485568,1720438220604,-500.0,0.0005178,120]
[331485569,1720438220652,-3249.91,0.0005178,120]
[331485570,1720438220701,-575.43,0.0005178,120]
[331485571,1720438220751,-2121.94,0.0005178,120]
[331485572,1720438220806,-500.0,0.0005178,120]
[331485573,1720438220857,-1484.69,0.0005178,120]
[331485574,1720438220909,-1415.03,0.0005178,120]
[331485575,1720438220961,-500.0,0.0005178,120]
[331485576,1720438221014,-500.0,0.0005178,120]
[331485577,1720438221066,-500.0,0.0005178,120]
[331485578,1720438221116,-500.0,0.0005178,120]
[331485579,1720438221165,-606.58,0.0005178,120]
[331485580,1720438221221,-500.0,0.0005178,120]
[331485581,1720438221272,-500.0,0.0005178,120]
[331485582,1720438221326,-500.0,0.0005178,120]
[331485583,1720438221374,-1775.66,0.0005178,120]
[331485585,1720438221422,-2617.01,0.0005178,120]
[331485586,1720438221469,-500.0,0.0005178,120]
[331485587,1720438221518,-500.0,0.0005178,120]
[331485588,1720438221568,-817.76,0.0005178,120]
[331485589,1720438221616,-500.0,0.0005178,120]
[331485590,1720438221663,-500.0,0.0005178,120]
[331485591,1720438221710,-500.0,0.0005178,120]
[331485592,1720438221758,-500.0,0.0005178,120]
[331485593,1720438221805,-500.0,0.0005178,120]
[331485594,1720438221853,-500.0,0.0005178,120]
[331485595,1720438221900,-500.0,0.0005178,120]
[331485596,1720438221947,-500.0,0.0005178,120]
[331485597,1720438221992,-670.77,0.0005178,120]
[331485598,1720438222036,-4545.65,0.0005178,120]
[331485599,1720438222081,-500.0,0.0005178,120]
[331485600,1720438222127,-1428.1,0.0005178,120]
[331485601,1720438222172,-5370.77,0.0005178,120]
[331485602,1720438222217,-500.0,0.0005178,120]
[331485603,1720438222263,-500.0,0.0005178,120]
[331485604,1720438222308,-1529.14,0.0005178,120]
[331485605,1720438222352,-500.0,0.0005178,120]
[331485606,1720438222397,-1665.53,0.0005178,120]
[331485607,1720438222441,-1851.79,0.0005178,120]
[331485608,1720438222487,-810.35,0.0005178,120]
[331485609,1720438222534,-705.82,0.0005178,120]
[331485610,1720438222582,-612.18,0.0005178,120]
[331485611,1720438222628,-592.08,0.0005178,120]
[331485612,1720438222673,-638.54,0.0005178,120]
[331485613,1720438222717,-2810.55,0.0005178,120]
[331485614,1720438222761,-337.20011326,0.0005178,120]
[331485615,1720438222801,-230.14937881,0.0005178,120]
[331485616,1720438222843,-4159.47,0.0005178,120]
[331485617,1720438222886,-1771.73,0.0005178,120]
[331485618,1720438222925,-500.0,0.0005178,120]
[331485619,1720438222969,-500.0,0.0005178,120]
[331485620,1720438223012,-500.0,0.0005178,120]
[331485621,1720438223052,-500.0,0.0005178,120]
[331485622,1720438223095,-599.01,0.0005178,120]
[331485623,1720438223134,-786.1,0.0005178,120]
[331485624,1720438223176,-500.0,0.0005178,120]
[331485625,1720438223220,-783.57,0.0005178,120]
[331485626,1720438223260,-500.0,0.0005178,120]
[331485627,1720438223302,-1980.59,0.0005178,120]
[331485628,1720438223344,-4167.38,0.0005178,120]
[331485629,1720438223388,-500.0,0.0005178,120]
[331485630,1720438223431,-500.0,0.0005178,120]
[331485631,1720438223473,-500.0,0.0005178,120]
[331485632,1720438223521,-588.73,0.0005178,120]
[331485633,1720438223566,-500.0,0.0005178,120]
[331485634,1720438223610,-2910.97,0.0005178,120]
[331485635,1720438223657,-500.0,0.0005178,120]
[331485636,1720438223703,-527.34,0.0005178,120]
[331485637,1720438223748,-1978.56,0.0005178,120]
[331485638,1720438223795,-500.0,0.0005178,120]
[331485639,1720438223840,-2309.55,0.0005178,120]
[331485640,1720438223886,-500.0,0.0005178,120]
[331485641,1720438223932,-500.0,0.0005178,120]
[331485642,1720438223980,-500.0,0.0005178,120]
[331485643,1720438224030,-500.0,0.0005178,120]
[331485644,1720438224082,-500.0,0.0005178,120]
[331485645,1720438224132,-5737.69,0.0005178,120]
[331485646,1720438224180,-4114.02,0.0005178,120]
[331485647,1720438224228,-500.0,0.0005178,120]
[331485648,1720438224277,-500.0,0.0005178,120]
[331485649,1720438224329,-500.0,0.0005178,120]
[331485650,1720438224377,-502.29790315,0.0005178,120]
[331485651,1720438224424,-500.0,0.0005178,120]
[331485652,1720438224472,-649.04,0.0005178,120]
[331485653,1720438224521,-500.0,0.0005178,120]
[331485654,1720438224571,-4945.17,0.0005178,120]
[331485655,1720438224620,-1257.97,0.0005178,120]
[331485656,1720438224669,-500.0,0.0005178,120]
[331485657,1720438224907,-3615.09,0.0005178,120]
[331485658,1720438224955,-2750.23,0.0005178,120]
[331485659,1720438225004,-1195.11,0.0005178,120]
[331485660,1720438225052,-500.0,0.0005178,120]
[331485661,1720438225097,-500.0,0.0005178,120]
[331485662,1720438225146,-2303.83,0.0005178,120]
[331485663,1720438225190,-500.0,0.0005178,120]
[331485664,1720438225236,-1030.01,0.0005178,120]
[331485665,1720438225282,-500.0,0.0005178,120]
[331485666,1720438225330,-500.0,0.0005178,120]
[331485667,1720438225375,-1108.77,0.0005178,120]
[331485668,1720438225420,-1037.41,0.0005178,120]
[331485669,1720438225464,-168.39567184,0.0005178,120]
[331485670,1720438225512,-1129.3,0.0005178,120]
[331485671,1720438225558,-500.0,0.0005178,120]
[331485672,1720438225605,-500.0,0.0005178,120]
[331485673,1720438225651,-500.0,0.0005178,120]
[331485674,1720438225699,-500.0,0.0005178,120]
[331485675,1720438225747,-500.0,0.0005178,120]
[331485676,1720438225795,-500.0,0.0005178,120]
[331485677,1720438225843,-3645.11,0.0005178,120]
[331485678,1720438225891,-500.0,0.0005178,120]
[331485679,1720438225939,-537.46,0.0005178,120]
[331485680,1720438225986,-500.0,0.0005178,120]
[331485681,1720438226033,-779.78,0.0005178,120]
[331485682,1720438226079,-1029.1,0.0005178,120]
[331485683,1720438226128,-2932.79,0.0005178,120]
[331485684,1720438226175,-724.0,0.0005178,120]
[331485685,1720438226226,-500.0,0.0005178,120]
[331485686,1720438226277,-500.0,0.0005178,120]
[331485687,1720438226330,-500.0,0.0005178,120]
[331485688,1720438226377,-745.19,0.0005178,120]
[331485689,1720438226425,-777.31,0.0005178,120]
[331485690,1720438226475,-2842.73,0.0005178,120]
[331485691,1720438226526,-731.02,0.0005178,120]
[331485692,1720438226575,-3212.9,0.0005178,120]
[331485693,1720438226626,-970.78,0.0005178,120]
[331485694,1720438226675,-500.0,0.0005178,120]
[331485695,1720438226724,-500.0,0.0005178,120]
[331485696,1720438226774,-500.0,0.0005178,120]
[331485697,1720438226824,-500.0,0.0005178,120]
[331485698,1720438226875,-500.0,0.0005178,120]
[331485699,1720438226926,-866.32,0.0005178,120]
[331485700,1720438226976,-656.72,0.0005178,120]
[331485701,1720438227028,-2301.35,0.0005178,120]
[331485702,1720438227081,-500.0,0.0005178,120]
[331485703,1720438227131,-500.0,0.0005178,120]
[331485704,1720438227181,-1651.75,0.0005178,120]
[331485705,1720438227231,-2707.16,0.0005178,120]
[331485706,1720438227285,-1487.69,0.0005178,120]
[331485707,1720438227336,-500.0,0.0005178,120]
[331485708,1720438227387,-1102.07,0.0005178,120]
[331485709,1720438227433,-1851.41,0.0005178,120]
[331485710,1720438227482,-500.0,0.0005178,120]
[331485711,1720438227530,-980.85,0.0005178,120]
[331485712,1720438227578,-500.0,0.0005178,120]
[331485713,1720438227626,-500.0,0.0005178,120]
[331485714,1720438227675,-4705.08,0.0005178,120]
[331485715,1720438227722,-1550.67,0.0005178,120]
[331485716,1720438227774,-500.0,0.0005178,120]
[331485717,1720438227822,-855.98,0.0005178,120]
[331485718,1720438227872,-500.0,0.0005178,120]
[331485719,1720438227924,-457.38811033,0.0005178,120]
[331485720,1720438227975,-3524.54,0.0005178,120]
[331485721,1720438228031,-500.0,0.0005178,120]
[331485722,1720438228085,-500.0,0.0005178,120]
[331485723,1720438228138,-500.0,0.0005178,120]
[331485724,1720438228185,-3542.65,0.0005178,120]
[331485725,1720438228233,-500.0,0.0005178,120]
[331485726,1720438228279,-500.0,0.0005178,120]
[331485727,1720438228331,-1404.03,0.0005178,120]
[331485728,1720438228376,-520.47,0.0005178,120]
[331485729,1720438228420,-569.31,0.0005178,120]
[331485730,1720438228464,-500.0,0.0005178,120]
[331485731,1720438228513,-500.0,0.0005178,120]
[331485732,1720438228562,-500.0,0.0005178,120]
[331485733,1720438228612,-1256.58,0.0005178,120]
[331485734,1720438228658,-639.52011727,0.0005178,120]
[331485735,1720438228706,-4775.84,0.0005178,120]
[331485736,1720438228755,-804.05,0.0005178,120]
[331485737,1720438228802,-500.0,0.0005178,120]
[331485738,1720438228850,-2135.26,0.0005178,120]
[331485739,1720438228899,-500.0,0.0005178,120]
[331485740,1720438228949,-536.3,0.0005178,120]
[331485741,1720438229000,-802.42,0.0005178,120]
[331485742,1720438229049,-500.0,0.0005178,120]
[331485743,1720438229095,-968.64,0.0005178,120]
[331485744,1720438229143,-500.0,0.0005178,120]
[331485745,1720438229191,-1082.19,0.0005178,120]
[331485746,1720438229238,-500.0,0.0005178,120]
[331485747,1720438229286,-500.0,0.0005178,120]
[331485748,1720438229336,-1570.5,0.0005178,120]
[331485749,1720438229383,-1935.41,0.0005178,120]
[331485750,1720438229429,-500.0,0.0005178,120]
[331485751,1720438229477,-500.0,0.0005178,120]
[331485752,1720438229526,-1670.66,0.0005178,120]
[331485753,1720438229573,-5085.83,0.0005178,120]
[331485754,1720438229619,-566.70575442,0.0005178,120]
[331485755,1720438229665,-500.0,0.0005178,120]
[331485756,1720438229712,-500.0,0.0005178,120]
[331485757,1720438229760,-500.0,0.0005178,120]
[331485758,1720438229805,-771.26,0.0005178,120]
[331485759,1720438229852,-602.95771416,0.0005178,120]
[331485760,1720438229900,-20855.15,0.0005178,120]
[331485761,1720438230133,-813.82,0.0005178,120]
[331485762,1720438230181,-500.0,0.0005178,120]
[331485763,1720438230230,-500.0,0.0005178,120]
[331485764,1720438230278,-2200.14,0.0005178,120]
[331485765,1720438230333,-3881.42,0.0005178,120]
[331485766,1720438230381,-1256.69,0.0005178,120]
[331485767,1720438230429,-500.0,0.0005178,120]
[331485768,1720438230479,-1326.11,0.0005178,120]
[331485769,1720438230528,-500.0,0.0005178,120]
[331485770,1720438230577,-1747.96,0.0005178,120]
[331485771,1720438230626,-530.51,0.0005178,120]
[331485772,1720438230673,-10457.36,0.0005178,120]
[331485773,1720438230722,-3955.09,0.0005178,120]
[331485774,1720438230771,-500.0,0.0005178,120]
[331485775,1720438230822,-941.75,0.0005178,120]
[331485776,1720438230872,-500.0,0.0005178,120]
[331485777,1720438230921,-1163.07,0.0005178,120]
[331485778,1720438230970,-500.0,0.0005178,120]
[331485779,1720438231020,-500.0,0.0005178,120]
[331485780,1720438231067,-500.0,0.0005178,120]
[331485781,1720438231116,-915.13,0.0005178,120]
[331485782,1720438231166,-4238.82,0.0005178,120]
[331485783,1720438231213,-532.42,0.0005178,120]
[331485784,1720438231263,-3090.27,0.0005178,120]
[331485785,1720438231311,-511.24,0.0005178,120]
[331485786,1720438231363,-5448.63,0.0005178,120]
[331485787,1720438231411,-2062.26,0.0005178,120]
[331485788,1720438231460,-513.01313571,0.0005178,120]
[331485789,1720438231509,-4594.83,0.0005178,120]
[331485790,1720438231559,-2547.29,0.0005178,120]
[331485791,1720438231609,-500.0,0.0005178,120]
[331485792,1720438231658,-501.64745287,0.0005178,120]
[331485793,1720438231707,-1773.39,0.0005178,120]
[331485794,1720438231757,-847.59,0.0005178,120]
[331485795,1720438231805,-722.73,0.0005178,120]
[331485796,1720438231853,-8365.78,0.0005178,120]
[331485797,1720438231899,-500.0,0.0005178,120]
[331485798,1720438231946,-962.79,0.0005178,120]
[331485799,1720438231992,-1826.77,0.0005178,120]
[331485800,1720438232037,-500.0,0.0005178,120]
[331485801,1720438232081,-500.0,0.0005178,120]
[331485802,1720438232124,-1768.04,0.0005178,120]
[331485804,1720438232169,-1447.56,0.0005178,120]
[331485805,1720438232215,-4590.57,0.0005178,120]
[331485806,1720438232259,-1801.6,0.0005178,120]
[331485807,1720438232303,-500.0,0.0005178,120]
[331485808,1720438232346,-500.0,0.0005178,120]
[331485809,1720438232390,-2861.76,0.0005178,120]
[331485810,1720438232435,-1122.87,0.0005178,120]
[331485811,1720438232479,-6551.73,0.0005178,120]
[331485812,1720438232526,-526.91,0.0005178,120]
[331485813,1720438232572,-659.22,0.0005178,120]
[331485814,1720438232619,-500.0,0.0005178,120]
[331485815,1720438232678,-314.77,0.0005178,120]
[331485816,1720438232733,-500.0,0.0005178,120]
[331485817,1720438232793,-686.39,0.0005178,120]
[331485818,1720438232850,-1136.27,0.0005178,120]
[331485819,1720438232909,-3164.35,0.0005178,120]
[331485820,1720438232968,-505.54,0.0005178,120]
[331485821,1720438233024,-1162.49,0.0005178,120]
[331485822,1720438233079,-1906.95,0.0005178,120]
[331485823,1720438233131,-500.0,0.0005178,120]
[331485824,1720438233187,-1298.4,0.0005178,120]
[331485825,1720438233248,-1181.68,0.0005178,120]
[331485826,1720438233303,-500.0,0.0005178,120]
[331485827,1720438233359,-2349.1,0.0005178,120]
[331485828,1720438233414,-811.45,0.0005178,120]
[331485829,1720438233468,-2038.75,0.0005178,120]
[331485830,1720438233523,-759.35,0.0005178,120]
[331485833,1720438233575,-1664.25,0.0005178,120]
[331485834,1720438233630,-2000.0,0.00051781,30]
[331485835,1720438233682,-158.0,0.000518,40]
[331485836,1720438233742,-166.6666667,0.00051878,60]
[331485837,1720438233799,-50000.0,0.00052,52]
[331485838,1720438233853,-500.0,0.00052,120]
[331485839,1720438233907,-500.0,0.00052054,120]
[331485840,1720438233964,-500.0,0.00052054,120]
[331485841,1720438234020,-633.31,0.00052054,120]
[331485842,1720438234075,-500.0,0.00052054,120]
[331485843,1720438234129,-500.0,0.00052054,120]
[331485844,1720438234183,-827.79,0.00052054,120]
[331485845,1720438234235,-1270.71,0.00052054,120]
[331485846,1720438234295,-2024.69,0.00052054,120]
[331485847,1720438234349,-1741.22,0.00052054,120]
[331485848,1720438234400,-1241.64,0.00052054,120]
[331485849,1720438234453,-1264.41,0.00052054,120]
[331485850,1720438234509,-500.0,0.00052054,120]
[331485851,1720438234561,-812.78,0.00052054,120]
[331485852,1720438234615,-500.0,0.00052054,120]
[331485853,1720438234669,-597.99,0.00052054,120]
[331485854,1720438234727,-500.0,0.00052054,120]
[331485855,1720438234795,-500.0,0.00052054,120]
[331485856,1720438234862,-592.5,0.00052054,120]
[331485857,1720438234918,-500.0,0.00052054,120]
[331485858,1720438234974,-500.06149464,0.00052054,120]
[331485859,1720438235032,-1087.49,0.00052054,120]
[331485860,1720438235085,-602.54,0.00052054,120]
[331485861,1720438235137,-1694.76,0.00052054,120]
[331485862,1720438235190,-500.0,0.00052054,120]
[331485863,1720438235244,-978.12,0.00052054,120]
[331485864,1720438235298,-500.0,0.00052054,120]
[331485865,1720438235351,-1886.47,0.00052054,120]
[331485866,1720438235402,-1514.14,0.00052054,120]
[331485867,1720438235638,-500.0,0.00052054,120]
[331485868,1720438235692,-500.0,0.00052054,120]
[331485869,1720438235746,-612.16,0.00052054,120]
[331485870,1720438235800,-528.50394293,0.00052054,120]
[331485871,1720438235852,-859.41,0.00052054,120]
[331485872,1720438235906,-715.44,0.00052054,120]
[331485873,1720438235959,-1041.8,0.00052054,120]
[331485874,1720438236012,-500.0,0.00052054,120]
[331485875,1720438236067,-500.0,0.00052054,120]
[331485876,1720438236119,-1826.92,0.00052054,120]
[331485877,1720438236171,-611.62,0.00052054,120]
[331485878,1720438236223,-500.0,0.00052054,120]
[331485879,1720438236277,-500.0,0.00052054,120]
[331485880,1720438236331,-500.0,0.00052054,120]
[331485881,1720438236383,-2300.26,0.00052054,120]
[331485882,1720438236434,-500.0,0.00052054,120]
[331485883,1720438236485,-500.0,0.00052054,120]
[331485884,1720438236540,-500.0,0.00052054,120]
[331485885,1720438236591,-2614.96,0.00052054,120]
[331485886,1720438236641,-500.0,0.00052054,120]
[331485887,1720438236690,-2148.51,0.00052054,120]
[331485888,1720438236743,-500.0,0.00052054,120]
[331485889,1720438236795,-633.82,0.00052054,120]
[331485890,1720438236848,-1837.33,0.00052054,120]
[331485891,1720438236901,-157.34131504,0.00052054,120]
[331485892,1720438236955,-500.0,0.00052054,120]
[331485893,1720438237005,-522.56,0.00052054,120]
[331485894,1720438237055,-500.0,0.00052054,120]
[331485895,1720438237104,-500.0,0.00052054,120]
[331485896,1720438237155,-1448.04,0.00052054,120]
[331485897,1720438237204,-852.59,0.00052054,120]
[331485898,1720438237252,-2564.45,0.00052054,120]
[331485899,1720438237302,-2132.97,0.00052054,120]
[331485900,1720438237352,-500.0,0.00052054,120]
[331485901,1720438237407,-679.05,0.00052054,120]
[331485902,1720438237459,-500.0,0.00052054,120]
[331485903,1720438237511,-2109.64,0.00052054,120]
[331485904,1720438237561,-600.73,0.00052054,120]
[331485905,1720438237615,-578.68,0.00052054,120]
[331485906,1720438237669,-1115.3,0.00052054,120]
[331485907,1720438237721,-500.0,0.00052054,120]
[331485908,1720438237772,-1725.52,0.00052054,120]
[331485909,1720438237821,-500.0,0.00052054,120]
[331485910,1720438237869,-1003.07,0.00052054,120]
[331485911,1720438237915,-723.07,0.00052054,120]
[331485912,1720438237965,-500.0,0.00052054,120]
[331485913,1720438238015,-981.91,0.00052054,120]
[331485914,1720438238063,-500.0,0.00052054,120]
[331485915,1720438238111,-500.0,0.00052054,120]
[331485916,1720438238160,-622.24,0.00052054,120]
[331485917,1720438238209,-500.0,0.00052054,120]
[331485918,1720438238256,-745.91,0.00052054,120]
[331485919,1720438238309,-594.32,0.00052054,120]
[331485920,1720438238362,-870.94,0.00052054,120]
[331485921,1720438238418,-623.11,0.00052054,120]
[331485922,1720438238471,-500.0,0.00052054,120]
[331485923,1720438238526,-1347.4,0.00052054,120]
[331485924,1720438238581,-500.0,0.00052054,120]
[331485925,1720438238633,-652.48,0.00052054,120]
[331485926,1720438238684,-560.3,0.00052054,120]
[331485927,1720438238736,-978.58,0.00052054,120]
[331485928,1720438238790,-1040.65,0.00052054,120]
[331485929,1720438238843,-2087.12,0.00052054,120]
[331485930,1720438238896,-500.0,0.00052054,120]
[331485931,1720438238951,-500.0,0.00052054,120]
[331485932,1720438239005,-555.79,0.00052054,120]
[331485933,1720438239063,-1043.43,0.00052054,120]
[331485934,1720438239118,-1696.47,0.00052054,120]
[331485935,1720438239174,-500.0,0.00052054,120]
[331485941,1720438239229,-500.0,0.00052054,120]
[331485942,1720438239289,-500.0,0.00052054,120]
[331485943,1720438239343,-1292.22,0.00052054,120]
[331485944,1720438239397,-557.25,0.00052054,120]
[331485945,1720438239454,-1700.15,0.00052054,120]
[331485946,1720438239511,-500.0,0.00052054,120]
[331485947,1720438239566,-653.46,0.00052054,120]
[331485948,1720438239621,-1020.7,0.00052054,120]
[331485949,1720438239675,-500.0,0.00052054,120]
[331485950,1720438239729,-731.92,0.00052054,120]
[331485951,1720438239788,-515.36,0.00052054,120]
[331485952,1720438239843,-500.0,0.00052054,120]
[331485953,1720438239899,-500.0,0.00052054,120]
[331485954,1720438239954,-1070.52,0.00052054,120]
[331485955,1720438240008,-783.21,0.00052054,120]
[331485956,1720438240061,-500.0,0.00052054,120]
[331485957,1720438240117,-500.0,0.00052054,120]
[331485959,1720438240170,-1354.07,0.00052054,120]
[331485960,1720438240229,-813.62,0.00052054,120]
[331485961,1720438240294,-1435.39,0.00052054,120]
[331485962,1720438240351,-564.74,0.00052054,120]
[331485963,1720438240413,-500.0,0.00052054,120]
[331485964,1720438240472,-500.0,0.00052054,120]
[331485965,1720438240527,-500.0,0.00052054,120]
[331485966,1720438240581,-500.0,0.00052054,120]
[331485967,1720438240635,-763.67,0.00052054,120]
[331485968,1720438240690,-2022.23,0.00052054,120]
[331485969,1720438240746,-564.92935993,0.00052054,120]
[331485970,1720438240802,-563.37755327,0.00052054,120]
[331485971,1720438240854,-500.0,0.00052054,120]
[331485972,1720438240906,-500.0,0.00052054,120]
[331485973,1720438240958,-500.0,0.00052054,120]
[331485980,1720438241010,-524.75,0.00052054,120]
[331485986,1720438241064,-2292.61,0.00052054,120]
[331485993,1720438241116,-1256.24,0.00052054,120]
[331485999,1720438241170,-1240.02,0.00052054,120]
[331486016,1720438241415,-500.0,0.00052054,120]
[331486023,1720438241467,-2191.34,0.00052054,120]
[331486029,1720438241521,-526.64,0.00052054,120]
[331486036,1720438241578,-500.0,0.00052054,120]
[331486042,1720438241635,-518.09,0.00052054,120]
[331486049,1720438241692,-500.0,0.00052054,120]
[331486056,1720438241756,-500.0,0.00052054,120]
[331486062,1720438241813,-500.0,0.00052054,120]
[331486069,1720438241868,-500.0,0.00052054,120]
[331486075,1720438241923,-500.0,0.00052054,120]
[331486082,1720438241974,-1483.16,0.00052054,120]
[331486088,1720438242026,-729.55,0.00052054,120]
[331486094,1720438242077,-500.0,0.00052054,120]
[331486099,1720438242127,-500.0,0.00052054,120]
[331486100,1720438242179,-500.0,0.00052054,120]
[331486101,1720438242231,-581.75,0.00052054,120]
[331486102,1720438242283,-500.0,0.00052054,120]
[331486103,1720438242339,-1051.68,0.00052054,120]
[331486104,1720438242387,-500.0,0.00052054,120]
[331486105,1720438242437,-500.0,0.00052054,120]
[331486106,1720438242487,-500.0,0.00052054,120]
[331486107,1720438242540,-553.77,0.00052054,120]
[331486108,1720438242590,-500.0,0.00052054,120]
[331486109,1720438242639,-500.0,0.00052054,120]
[331486110,1720438242691,-790.33,0.00052054,120]
[331486111,1720438242741,-625.62,0.00052054,120]
[331486112,1720438242791,-755.84,0.00052054,120]
[331486113,1720438242842,-1285.43,0.00052054,120]
[331486114,1720438242891,-500.0,0.00052054,120]
[331486115,1720438242941,-500.0,0.00052054,120]
[331486116,1720438242991,-838.12,0.00052054,120]
[331486117,1720438243041,-500.0,0.00052054,120]
[331486118,1720438243089,-500.0,0.00052054,120]
[331486122,1720438243136,-500.0,0.00052054,120]
[331486125,1720438243186,-1091.2,0.00052054,120]
[331486132,1720438243234,-757.21,0.00052054,120]
[331486136,1720438243282,-500.0,0.00052054,120]
[331486137,1720438243335,-500.0,0.00052054,120]
[331486139,1720438243384,-1418.14,0.00052054,120]
[331486140,1720438243431,-664.42,0.00052054,120]
[331486141,1720438243480,-529.96,0.00052054,120]
[331486142,1720438243530,-624.06,0.00052054,120]
[331486143,1720438243580,-1837.3,0.00052054,120]
[331486144,1720438243632,-1202.89,0.00052054,120]
[331486145,1720438243682,-512.65477952,0.00052054,120]
[331486146,1720438243735,-973.5,0.00052054,120]
[331486147,1720438243788,-500.0,0.00052054,120]
[331486148,1720438243843,-500.0,0.00052054,120]
[331486149,1720438243896,-1140.41,0.00052054,120]
[331486150,1720438243950,-3258.9,0.00052054,120]
[331486151,1720438244002,-909.76,0.00052054,120]
[331486152,1720438244054,-500.0,0.00052054,120]
[331486153,1720438244109,-531.73,0.00052054,120]
[331486154,1720438244164,-500.0,0.00052054,120]
[331486158,1720438244220,-1448.05,0.00052054,120]
[331486159,1720438244274,-1331.04,0.00052054,120]
[331486160,1720438244332,-500.0,0.00052054,120]
[331486161,1720438244387,-673.04,0.00052054,120]
[331486162,1720438244441,-907.76,0.00052054,120]
[331486163,1720438244495,-500.0,0.00052054,120]
[331486164,1720438244551,-500.0,0.00052054,120]
[331486165,1720438244604,-997.68,0.00052054,120]
[331486166,1720438244656,-500.0,0.00052054,120]
[331486167,1720438244708,-500.0,0.00052054,120]
[331486168,1720438244760,-500.0,0.00052054,120]
[331486169,1720438244811,-1517.56,0.00052054,120]
[331486170,1720438244862,-500.0,0.00052054,120]
[331486171,1720438244919,-646.53,0.00052054,120]
[331486172,1720438244975,-500.0,0.00052054,120]
[331486173,1720438245036,-580.66,0.00052054,120]
[331486174,1720438245094,-612.85,0.00052054,120]
[331486175,1720438245149,-1069.21,0.00052054,120]
[331486176,1720438245201,-949.68,0.00052054,120]
[331486177,1720438245254,-2991.81,0.00052054,120]
[331486178,1720438245307,-2078.73,0.00052054,120]
[331486179,1720438245359,-587.75,0.00052054,120]
[331486180,1720438245413,-766.18,0.00052054,120]
[331486181,1720438245465,-606.14,0.00052054,120]
[331486182,1720438245517,-1492.0,0.00052054,120]
[331486183,1720438245569,-2128.57,0.00052054,120]
[331486184,1720438245622,-500.0,0.00052054,120]
[331486185,1720438245673,-500.0,0.00052054,120]
[331486186,1720438245727,-500.0,0.00052054,120]
[331486187,1720438245779,-522.56,0.00052054,120]
[331486188,1720438245831,-537.16,0.00052054,120]
[331486189,1720438245883,-754.88,0.00052054,120]
[331486190,1720438245935,-500.0,0.00052054,120]